bitfinex/quotes_ETHUSD_20220111
["timestamp","ask_amount","ask_price","bid_price","bid_amount"]
[1641902759241,0.00397897,3107.3,3107.2,10.82632764]
[1641902759432,0.00397897,3107.3,3107.2,10.78133809]
[1641902759638,0.00397897,3107.3,3107.2,7.46023112]
[1641902760036,0.00397897,3107.3,3107.2,10.7907941]
[1641902760233,0.00397897,3107.3,3107.2,10.82169637]
[1641902760434,0.00397897,3107.3,3107.2,7.46023112]
[1641902760632,0.00397897,3107.3,3107.2,10.82090376]
[1641902760833,0.00397897,3107.3,3107.2,10.71962411]
[1641902761239,0.00397897,3107.3,3107.2,14.03035362]
[1641902761481,0.00397897,3107.3,3107.2,10.71962411]
[1641902761681,0.00397897,3107.3,3107.2,14.04200521]
[1641902761889,0.00397897,3107.3,3107.2,10.71962411]
[1641902762083,7.503,3107.5,3107.3,6.8]
[1641902762283,7.503,3107.5,3107.4,9.3130419]
[1641902762483,0.49321747,3108.1,3107.4,5.11919495]
[1641902762688,0.00113684,3107.5,3107.4,5.11919495]
[1641902762883,0.00113684,3107.5,3107.4,11.11568746]
[1641902763085,0.00113684,3107.5,3107.4,11.37838746]
[1641902764083,0.00113684,3107.5,3107.4,11.11568746]
[1641902764783,0.00113684,3107.5,3107.4,7.85629447]
[1641902765426,0.00113684,3107.5,3107.4,6.75014142]
[1641902766226,0.00113684,3107.5,3107.4,3.33709952]
[1641902767024,3.20113684,3107.5,3107.4,2.73709952]
[1641902767826,3.20113684,3107.5,3107.3,2.73709952]
[1641902768525,3.20113684,3107.5,3107.4,2.73709952]
[1641902768983,3.20113684,3107.5,3107.4,6.0030566]
[1641902769585,3.20113684,3107.5,3107.3,0.6]
[1641902769789,3.20113684,3107.5,3107.3,0.3]
[1641902769990,3.20113684,3107.5,3107.2,0.13819997]
[1641902770188,3.20113684,3107.5,3107.4,2.73709952]
[1641902770586,3.20113684,3107.5,3107.4,0.6]
[1641902771086,3.20113684,3107.5,3107.4,2.73709952]
[1641902771988,3.20113684,3107.5,3107.4,5.28709952]
[1641902772187,0.08044,3108.4,3107.5,6.5]
[1641902772393,0.08042,3108.6,3108.0,1.27717575]
[1641902772645,0.00454739,3108.3,3108.0,2.15977575]
[1641902772830,0.00454739,3108.3,3108.0,2.75977575]
[1641902773029,0.48546235,3108.7,3108.0,2.75977575]
[1641902773030,0.00397897,3108.2,3108.0,2.75977575]
[1641902773330,0.00341055,3108.1,3108.0,2.75977575]
[1641902773531,0.00341055,3108.1,3108.0,1.4826]
[1641902773934,0.00341055,3108.1,3108.0,5.7326]
[1641902774133,0.00341055,3108.1,3108.0,5.4326]
[1641902774634,0.00341055,3108.1,3107.7,4.09710813]
[1641902774834,0.00341055,3108.1,3107.8,3.66255277]
[1641902775040,0.00284212,3108.0,3107.8,3.96255277]
[1641902775234,0.00284212,3108.0,3107.8,4.26255277]
[1641902775435,0.48546235,3108.7,3107.9,3.5962221]
[1641902775832,0.00625266,3108.6,3107.9,3.5962221]
[1641902776235,0.00568424,3108.5,3108.2,3.26532018]
[1641902776677,0.48546235,3108.7,3108.3,7.8071723]
[1641902776678,0.00511582,3108.4,3108.3,7.8071723]
[1641902776878,0.00511582,3108.4,3108.3,7.9302]
[1641902777078,0.00511582,3108.4,3108.3,8.3942]
[1641902777277,8.936,3109.7,3108.4,6.8]
[1641902777479,8.936,3109.7,3108.7,1.0225223]
[1641902777688,8.936,3109.7,3108.7,0.5354]
[1641902777689,0.00625265,3109.5,3108.7,0.5354]
[1641902777877,0.00625265,3109.5,3108.7,0.8354]
[1641902778081,0.00568423,3109.4,3108.7,0.8354]
[1641902778480,0.00511581,3109.3,3108.9,0.00695436]
[1641902778679,0.00511581,3109.3,3108.8,3.80004524]
[1641902778878,0.00454738,3109.2,3108.9,3.86403428]
[1641902779080,0.00454738,3109.2,3109.0,0.01837762]
[1641902779279,0.00397896,3109.1,3109.0,0.7556]
[1641902779478,0.00397896,3109.1,3109.0,4.33972071]
[1641902779978,0.00397896,3109.1,3109.0,4.63972071]
[1641902780238,0.00397896,3109.1,3109.0,4.93972071]
[1641902781031,0.00397896,3109.1,3109.0,2.15043284]
[1641902781433,0.00397896,3109.1,3109.0,5.94963834]
[1641902781633,0.00397896,3109.1,3109.0,9.21399064]
[1641902782032,0.00397896,3109.1,3109.0,5.94963834]
[1641902782232,0.00687803,3109.2,3109.1,6.4]
[1641902782432,0.00687803,3109.2,3109.1,10.18315402]
[1641902782634,0.00687803,3109.2,3109.1,3.78315402]
[1641902782940,0.00687803,3109.2,3109.0,1.3556]
[1641902784389,0.00687803,3109.2,3109.1,3.52416849]
[1641902784584,0.00687803,3109.2,3109.0,4.61980709]
[1641902785200,0.00687803,3109.2,3109.0,1.3556]
[1641902785386,3.2,3109.4,3109.0,1.3556]
[1641902785786,0.00113685,3109.3,3109.0,1.0556]
[1641902786087,0.00113685,3109.3,3108.7,4.39710813]
[1641902786288,0.00113685,3109.3,3108.7,4.09710813]
[1641902786488,0.00113685,3109.3,3108.8,0.00170527]
[1641902787088,0.02473274,3109.1,3108.3,5.47336477]
[1641902787287,0.02473274,3109.1,3108.2,0.20503954]
[1641902787288,0.01248352,3109.1,3108.7,3.26452915]
[1641902787489,0.00113685,3109.0,3108.7,3.26452915]
[1641902788934,0.00113685,3109.0,3108.8,3.26452915]
[1641902790137,0.00113685,3109.0,3108.8,0.3]
[1641902790535,0.00799329,3109.0,3108.7,3.86452915]
[1641902790741,0.00799329,3109.0,3108.7,0.6]
[1641902790936,0.00799329,3109.0,3108.9,2.73438961]
[1641902791377,0.00799329,3109.0,3108.8,3.03438961]
[1641902791579,0.00799329,3109.0,3108.8,2.73438961]
[1641902792178,0.00799329,3109.0,3108.9,2.73438961]
[1641902792977,3.2,3109.4,3109.3,0.01598658]
[1641902793178,3.2,3109.4,3108.9,4.35938302]
[1641902793381,0.00170527,3109.3,3108.9,4.35938302]
[1641902793578,0.00170527,3109.3,3108.9,1.62499341]
[1641902793777,0.00113684,3109.2,3108.9,1.62499341]
[1641902794179,0.00113684,3109.2,3108.7,2.73769477]
[1641902794577,0.00113684,3109.2,3108.8,0.00113685]
[1641902795232,0.00113684,3109.2,3108.8,2.43883162]
[1641902795834,0.00113684,3109.2,3108.8,0.00113685]
[1641902799384,0.01218751,3109.1,3108.8,0.00113685]
[1641902799684,0.09258751,3109.1,3108.8,0.00113685]
[1641902799881,2.45,3109.0,3108.1,1.1745]
[1641902800083,2.45,3109.0,3108.4,2.43812857]
[1641902800084,0.02382155,3108.9,3108.4,2.43812857]
[1641902800286,0.00113684,3109.0,3108.4,2.43812857]
[1641902802382,0.00113684,3109.0,3108.5,0.01207014]
[1641902802833,0.00113684,3109.0,3108.6,0.00113685]
[1641902803531,0.00113684,3109.0,3108.4,0.00227369]
[1641902803736,0.00113684,3109.0,3108.6,1.62094309]
[1641902804332,0.00113684,3109.0,3108.7,1.62094309]
[1641902805335,0.00113684,3109.0,3108.9,4.06252193]
[1641902805737,0.00113684,3109.0,3108.8,4.06252193]
[1641902806985,0.00113684,3109.0,3108.9,4.06252193]
[1641902807788,0.00113684,3109.0,3108.8,4.06252193]
[1641902808598,3.2,3109.4,3108.8,4.06252193]
[1641902808995,0.00113685,3109.2,3108.8,4.06252193]
[1641902810234,0.00113685,3109.2,3108.9,4.06252193]
[1641902810735,0.00113685,3109.2,3109.0,1.0]
[1641902811036,0.00113685,3109.2,3109.0,5.06252193]
[1641902811636,0.00113685,3109.2,3109.0,1.0]
[1641902811834,0.00113685,3109.2,3108.9,8.49171408]
[1641902812035,1.1857,3109.7,3109.1,0.76399955]
[1641902812234,1.1857,3109.7,3109.0,4.65113684]
[1641902812435,0.0022737,3109.6,3109.0,1.30113684]
[1641902812836,0.00170527,3109.5,3109.0,1.30113684]
[1641902813035,0.00170527,3109.5,3109.0,0.30113684]
[1641902813234,0.00113685,3109.4,3109.0,1.30113684]
[1641902813435,0.00113685,3109.4,3109.3,4.08955223]
[1641902813634,0.00113685,3109.4,3109.3,5.08955223]
[1641902813892,0.00113685,3109.4,3109.3,6.48755223]
[1641902814087,0.00113685,3109.4,3109.3,2.398]
[1641902814491,0.00113685,3109.4,3109.3,1.398]
[1641902815489,0.00113685,3109.4,3109.2,5.38955223]
[1641902816590,0.00113685,3109.4,3109.3,5.98389507]
[1641902816797,0.00113685,3109.4,3109.3,2.73389507]
[1641902817091,0.00113685,3109.4,3109.3,3.73389507]
[1641902818133,0.00113685,3109.4,3109.2,4.08955223]
[1641902818536,0.00113685,3109.4,3109.3,2.73389507]
[1641902819234,0.00113685,3109.4,3109.2,4.08955223]
[1641902819438,0.00113685,3109.4,3109.2,4.38955223]
[1641902819639,0.00113685,3109.4,3109.3,1.0]
[1641902819837,0.00113685,3109.4,3109.3,5.08955223]
[1641902820239,0.00113685,3109.4,3109.3,4.08955223]
[1641902820437,0.00113685,3109.4,3109.3,5.08955223]
[1641902820836,0.00113685,3109.4,3109.3,4.38955223]
[1641902821038,0.00113685,3109.4,3109.3,1.0]
[1641902821495,0.00113685,3109.4,3109.1,1.0]
[1641902822102,0.00113685,3109.4,3109.2,2.73389507]
[1641902822294,3.6954,3110.0,3109.3,4.55]
[1641902822494,3.6954,3110.0,3109.4,1.36603003]
[1641902822696,0.00284212,3109.9,3109.4,1.36603003]
[1641902822896,0.00284212,3109.9,3109.4,1.66603003]
[1641902823095,0.00227369,3109.8,3109.4,1.66603003]
[1641902823296,0.00227369,3109.8,3109.7,4.08502944]
[1641902823596,0.83968776,3110.3,3109.8,0.00410513]
[1641902823895,3.2147,3110.4,3109.7,4.08502944]
[1641902823896,0.00341054,3110.0,3109.7,4.08502944]
[1641902824294,0.00284212,3109.9,3109.7,4.08502944]
[1641902824800,0.00227369,3109.8,3109.7,4.08502944]
[1641902824998,1.1729,3110.6,3109.8,2.4]
[1641902825245,1.1729,3110.6,3109.7,4.08502944]
[1641902825445,0.00284212,3110.3,3109.7,4.08502944]
[1641902825845,1.65335914,3110.6,3109.7,4.08502944]
[1641902825846,0.0022737,3110.2,3109.7,4.08502944]
[1641902826247,0.00170527,3110.1,3109.7,4.08502944]
[1641902826452,0.00170527,3110.1,3109.6,7.60062912]
[1641902826648,0.00113685,3110.0,3109.6,4.38502944]
[1641902827047,0.00397897,3110.5,3109.6,4.38502944]
[1641902827250,0.00397897,3110.5,3109.7,2.73389507]
[1641902827552,0.00341055,3110.4,3109.7,2.73389507]
[1641902827950,0.00397897,3110.5,3110.3,2.44688396]
[1641902828350,0.00341055,3110.4,3110.2,2.44688396]
[1641902828748,0.00397897,3110.5,3109.7,2.73389507]
[1641902828996,0.00397897,3110.5,3110.3,2.73389507]
[1641902829196,0.00341055,3110.4,3110.3,2.73389507]
[1641902829596,0.00341055,3110.4,3109.8,2.73389507]
[1641902829999,0.00341055,3110.4,3110.3,2.73389507]
[1641902831500,0.00341055,3110.4,3109.9,2.73389507]
[1641902831902,0.00341055,3110.4,3109.6,5.32562944]
[1641902832102,0.00341055,3110.4,3109.7,1.0]
[1641902834739,0.00341055,3110.4,3109.7,5.08502944]
[1641902835141,0.00341055,3110.4,3109.7,1.0]
[1641902835342,0.00341055,3110.4,3109.6,5.32562944]
[1641902835549,0.00341055,3110.4,3109.7,5.08502944]
[1641902837890,0.00341055,3110.4,3109.7,4.08502944]
[1641902838286,3.15,3110.2,3109.3,7.0726]
[1641902838487,0.01798861,3110.1,3109.4,1.0]
[1641902838688,0.00170527,3110.1,3109.5,4.07777028]
[1641902838890,0.00113685,3110.0,3109.3,3.167]
[1641902839188,0.01215118,3110.4,3109.1,5.47336477]
[1641902839189,0.0022737,3109.9,3109.1,5.47336477]
[1641902839389,0.0022737,3109.9,3108.9,3.9458]
[1641902839390,0.01244713,3109.4,3108.9,5.47336477]
[1641902839589,0.01244713,3109.4,3109.2,0.00170527]
[1641902839988,0.01244713,3109.4,3108.9,5.47336477]
[1641902839989,4.2,3109.3,3108.4,6.74691618]
[1641902840243,4.2,3109.3,3109.0,0.00113684]
[1641902840442,5.63039,3109.2,3108.3,5.43795844]
[1641902840649,5.55113684,3109.2,3108.4,0.00341054]
[1641902840940,9.22313272,3109.1,3108.2,4.10102909]
[1641902841141,0.08042,3109.0,3107.7,1.1466]
[1641902841347,0.00341054,3109.0,3107.7,1.1466]
[1641902841540,0.00284211,3108.9,3108.0,0.0022737]
[1641902841943,0.00227369,3108.8,3108.0,0.0022737]
[1641902842340,0.00170527,3108.7,3108.0,0.0022737]
[1641902842641,4.92880067,3109.1,3108.6,3.26357984]
[1641902842642,0.08013,3109.0,3108.6,3.26357984]
[1641902843042,0.08354054,3109.0,3108.0,0.0022737]
[1641902843743,0.08354054,3109.0,3108.7,3.26341889]
[1641902844183,0.08354054,3109.0,3108.8,0.00506446]
[1641902844383,0.00341054,3109.0,3108.8,0.00506446]
[1641902844585,0.00341054,3109.0,3108.7,3.26341889]
[1641902845084,0.00341054,3109.0,3108.8,3.26341889]
[1641902846686,0.00341054,3109.0,3108.7,3.26341889]
[1641902846886,4.2,3108.9,3108.3,4.07908935]
[1641902847288,0.00227369,3108.8,3108.3,4.07908935]
[1641902847488,0.00227369,3108.8,3108.2,4.07908935]
[1641902847750,0.00170527,3108.7,3108.2,4.07908935]
[1641902847950,0.00170527,3108.7,3108.3,4.95740335]
[1641902848153,0.00113684,3108.6,3108.3,1.37645612]
[1641902848751,0.00113684,3108.6,3108.3,5.45554547]
[1641902849550,0.00113684,3108.6,3108.4,4.07908935]
[1641902850149,0.00113684,3108.6,3108.4,7.62400405]
[1641902850351,0.00113684,3108.6,3108.4,7.72494583]
[1641902850552,0.00113684,3108.6,3108.5,6.56826134]
[1641902850751,0.00113684,3108.6,3108.5,10.64735069]
[1641902850951,3.20113684,3108.6,3108.5,10.64735069]
[1641902851158,0.49161264,3109.4,3109.3,4.62587487]
[1641902851396,0.49161264,3109.4,3109.3,9.7181402]
[1641902852192,0.49161264,3109.4,3109.3,10.0181402]
[1641902852595,0.49161264,3109.4,3109.3,12.75206872]
[1641902852794,3.8381,3110.2,3109.3,12.75206872]
[1641902852996,9.37795914,3110.6,3109.4,1.00787695]
[1641902852997,5.71616914,3110.6,3109.4,1.00787695]
[1641902853194,0.00852635,3110.1,3109.5,5.22098306]
[1641902853593,0.00795793,3110.0,3109.6,1.0]
[1641902853900,0.00738951,3109.9,3109.7,3.73719839]
[1641902854093,0.00738951,3109.9,3109.8,7.4]
[1641902854295,0.48045914,3110.6,3109.8,11.10234234]
[1641902854696,0.01080005,3110.5,3109.9,0.00610022]
[1641902854995,0.48045914,3110.6,3109.8,15.18249982]
[1641902854996,0.01023163,3110.4,3109.8,15.18249982]
[1641902855436,0.0096632,3110.3,3110.0,2.73392852]
[1641902855635,0.0096632,3110.3,3110.1,3.54785928]
[1641902855837,0.00909478,3110.2,3110.1,3.54785928]
[1641902856036,0.00909478,3110.2,3110.1,11.19785928]
[1641902856240,0.00909478,3110.2,3110.1,11.96185928]
[1641902856441,3.74424,3111.9,3110.1,12.26185928]
[1641902856639,0.83915369,3111.5,3110.2,19.79]
[1641902856835,0.00511581,3111.1,3110.3,23.9716217]
[1641902857038,0.00511581,3111.1,3110.4,1.0]
[1641902857238,0.00454739,3111.0,3110.5,4.49485397]
[1641902857438,0.00454739,3111.0,3110.6,2.15853566]
[1641902857639,0.83915369,3111.5,3110.7,4.82868019]
[1641902857640,0.00397896,3110.9,3110.7,4.82868019]
[1641902858037,0.49372397,3112.0,3110.7,4.82868019]
[1641902858038,0.83900291,3111.9,3110.8,7.8]
[1641902858240,0.83900291,3111.9,3110.9,4.08006901]
[1641902858438,0.84866611,3111.9,3110.9,4.08006901]
[1641902858639,0.83791611,3111.9,3111.0,1.464]
[1641902858897,0.0081032,3111.9,3111.0,4.49792852]
[1641902859100,0.7542,3112.1,3111.0,4.49792852]
[1641902859101,0.00753477,3111.8,3111.7,2.4488794]
[1641902859698,0.00753477,3111.8,3111.4,0.464]
[1641902859898,0.00494477,3111.8,3111.5,1.50088796]
[1641902860097,0.00696635,3111.7,3111.5,1.0]
[1641902860294,0.00437635,3111.7,3111.5,1.0]
[1641902860495,0.00380793,3111.6,3111.5,1.0]
[1641902860696,0.00380793,3111.6,3111.5,5.08162867]
[1641902860894,0.00380793,3111.6,3111.5,9.40274533]
[1641902861498,0.00380793,3111.6,3111.5,5.32111666]
[1641902861899,0.00380793,3111.6,3111.5,24.11111666]
[1641902862295,0.00380793,3111.6,3111.5,28.21305562]
[1641902862496,3.2,3111.8,3111.5,33.65201271]
[1641902862742,3.2,3111.8,3111.5,34.11601271]
[1641902862944,3.2,3111.8,3111.6,0.68424999]
[1641902863138,3.2,3111.8,3111.7,29.8138574]
[1641902863539,3.20113684,3111.8,3111.7,24.3138574]
[1641902863739,0.7542,3112.1,3111.8,6.75]
[1641902863938,0.7542,3112.1,3112.0,1.42894374]
[1641902864139,0.7542,3112.1,3112.0,5.53315698]
[1641902864345,9.5109,3113.1,3112.0,6.53315698]
[1641902864539,0.83878898,3113.5,3112.1,1.0]
[1641902864738,0.00682109,3113.0,3112.2,4.95602166]
[1641902864941,0.00682109,3113.0,3112.2,23.74602166]
[1641902865139,0.00625266,3112.9,3112.3,1.0]
[1641902865339,0.00625266,3112.9,3112.4,3.63040957]
[1641902865540,0.00568424,3112.8,3112.5,1.0]
[1641902865941,0.00511581,3112.7,3112.5,1.3]
[1641902866140,0.00511581,3112.7,3112.5,2.13231104]
[1641902866385,0.40814517,3113.8,3112.6,8.21498858]
[1641902866584,0.40814517,3113.8,3112.7,0.0113919]
[1641902866585,0.32804517,3113.8,3112.7,0.0113919]
[1641902866784,0.83857221,3113.9,3113.0,1.50384633]
[1641902866785,0.0096632,3113.5,3113.0,1.50384633]
[1641902866993,0.0096632,3113.5,3113.1,0.00909597]
[1641902867185,1.18055669,3114.2,3113.1,0.96751278]
[1641902867186,0.00909478,3113.4,3113.1,0.96751278]
[1641902867585,23.49071,3114.6,3113.2,7.40219997]
[1641902867586,0.00852636,3113.3,3113.2,7.40219997]
[1641902867986,0.00852636,3113.3,3113.2,8.70219997]
[1641902868188,9.78473061,3114.6,3114.4,0.00483097]
[1641902868388,9.78473061,3114.6,3114.3,0.0044604]
[1641902868589,0.00682108,3114.5,3114.2,0.9654]
[1641902868888,0.48793061,3114.6,3114.2,1.2654]
[1641902868889,0.00625265,3114.4,3114.2,1.2654]
[1641902869288,0.48793061,3114.6,3114.2,1.2654]
[1641902869289,0.00568423,3114.3,3114.2,1.2654]
[1641902869495,0.00568423,3114.3,3113.8,5.24822591]
[1641902869690,0.00568423,3114.3,3113.8,0.3]
[1641902869888,0.00511581,3114.2,3113.9,1.0]
[1641902870151,0.00511581,3114.2,3113.8,3.68547935]
[1641902870340,0.00454738,3114.1,3113.8,3.68547935]
[1641902870543,0.00454738,3114.1,3113.9,1.0]
[1641902870741,0.00397896,3114.0,3113.9,1.0]
[1641902870941,0.00397896,3114.0,3113.9,11.92028101]
[1641902871142,0.00397896,3114.0,3113.9,5.11216449]
[1641902871344,0.00397896,3114.0,3113.9,4.88257943]
[1641902871642,3.2,3114.6,3114.0,5.4]
[1641902871842,3.2,3114.6,3114.0,5.7]
[1641902872045,0.48252219,3115.0,3114.1,1.0]
[1641902872046,0.00284212,3114.5,3114.1,1.0]
[1641902872242,5.78040315,3115.3,3114.2,4.6]
[1641902872442,5.70041315,3115.3,3114.2,4.60170527]
[1641902872641,0.00227369,3114.9,3114.2,4.90170527]
[1641902872842,0.00227369,3114.9,3114.4,5.42646825]
[1641902873043,0.00170527,3114.8,3114.5,3.55587175]
[1641902873245,0.00170527,3114.8,3114.4,5.42646825]
[1641902873445,0.00113684,3114.7,3114.5,5.19556694]
[1641902873644,0.00113684,3114.7,3114.6,10.63226482]
[1641902873888,0.00397896,3115.2,3115.1,1.16350228]
[1641902874089,0.9344497,3115.3,3115.1,1.16350228]
[1641902875087,0.9344497,3115.3,3115.1,5.05882153]
[1641902875289,0.9344497,3115.3,3115.1,1.46350228]
[1641902875487,0.08004,3116.0,3115.8,1.8688994]
[1641902875688,0.49289327,3116.2,3115.3,0.00570154]
[1641902875689,0.57307327,3116.2,3115.3,0.00570154]
[1641902875888,0.57307327,3116.2,3115.2,8.4316849]
[1641902875889,0.00795793,3115.9,3115.2,8.4316849]
[1641902876090,0.00795793,3115.9,3115.2,4.8]
[1641902876289,0.0073895,3115.8,3115.2,4.8]
[1641902876688,0.00682108,3115.7,3115.2,4.8]
[1641902877087,0.00625266,3115.6,3115.2,8.40723387]
[1641902877294,0.00625266,3115.6,3115.2,4.8]
[1641902877487,0.00568423,3115.5,3115.2,4.8]
[1641902877739,0.00568423,3115.5,3115.2,8.32882905]
[1641902877935,0.00511581,3115.4,3115.2,8.32882905]
[1641902878134,0.00511581,3115.4,3115.3,3.75]
[1641902878335,0.49289327,3116.2,3115.3,7.38389041]
[1641902878536,0.35800749,3116.2,3115.3,7.38389041]
[1641902878738,0.00909477,3116.1,3115.2,6.75992626]
[1641902879036,0.35800749,3116.2,3115.1,1.46350228]
[1641902879037,0.00852635,3116.0,3115.1,1.46350228]
[1641902879438,0.00795793,3115.9,3115.1,8.22342854]
[1641902879841,0.0073895,3115.8,3115.1,8.22342854]
[1641902880238,0.00682108,3115.7,3115.2,6.75992626]
[1641902880639,0.00625266,3115.6,3115.2,6.75992626]
[1641902881042,0.00568423,3115.5,3115.2,6.75992626]
[1641902881488,0.35800749,3116.2,3115.2,6.75992626]
[1641902881489,0.00511581,3115.4,3115.2,6.75992626]
[1641902881894,0.00454738,3115.3,3115.1,8.15183024]
[1641902882192,0.00397896,3115.2,3115.1,8.15183024]
[1641902882495,0.00397896,3115.2,3115.1,7.05992626]
[1641902882689,0.00397896,3115.2,3115.1,8.05992626]
[1641902883090,0.00397896,3115.2,3115.1,11.83347177]
[1641902883490,0.00397896,3115.2,3115.1,13.26574882]
[1641902883991,0.00397896,3115.2,3115.1,8.49220331]
[1641902884190,0.00397896,3115.2,3115.1,0.3]
[1641902884390,0.00397896,3115.2,3115.1,5.95]
[1641902884590,0.00397896,3115.2,3114.9,3.7494]
[1641902884996,0.00341054,3115.1,3114.9,4.0494]
[1641902885247,0.00341054,3115.1,3114.9,3.3494]
[1641902885447,0.00284211,3115.0,3114.9,3.3494]
[1641902885650,0.00284211,3115.0,3114.9,0.3]
[1641902885847,0.08017,3116.1,3115.1,0.00738951]
[1641902886246,0.00511582,3115.9,3115.1,0.00738951]
[1641902886648,0.00454739,3115.8,3115.1,0.00738951]
[1641902886848,0.54424,3115.7,3115.1,0.00738951]
[1641902887047,3.53464712,3115.6,3115.1,0.00738951]
[1641902887250,0.54424,3115.5,3115.1,0.00738951]
[1641902887450,0.54708212,3115.5,3115.1,0.00738951]
[1641902887759,0.0022737,3115.4,3115.1,0.00738951]
[1641902887948,0.08024,3115.3,3115.2,2.43779315]
[1641902888148,0.08194527,3115.3,3115.2,2.43779315]
[1641902888649,5.23194527,3115.3,3115.1,0.00738951]
[1641902889092,0.00113685,3115.2,3115.1,0.00738951]
[1641902890193,0.08014,3115.6,3115.1,0.00738951]
[1641902890396,0.74711824,3115.9,3115.1,0.00738951]
[1641902890591,0.00170527,3115.5,3115.1,0.00738951]
[1641902890993,0.00113685,3115.4,3115.1,0.00738951]
[1641902891493,0.00341054,3115.8,3115.2,2.72956545]
[1641902891892,0.00284212,3115.7,3115.2,2.72956545]
[1641902892394,0.0022737,3115.6,3115.1,0.00738951]
[1641902892839,0.76589306,3115.9,3115.3,2.72956545]
[1641902893044,0.84613306,3115.9,3115.3,2.72956545]
[1641902893241,0.00341054,3115.8,3115.3,2.72956545]
[1641902893741,0.00284212,3115.7,3115.3,2.72956545]
[1641902894144,0.0022737,3115.6,3115.2,2.72956545]
[1641902894543,0.00454739,3116.0,3115.1,0.00738951]
[1641902894942,0.00397897,3115.9,3115.1,0.00738951]
[1641902895142,0.00397897,3115.9,3115.3,2.72956545]
[1641902895341,0.00341054,3115.8,3115.3,2.72956545]
[1641902895741,0.00284212,3115.7,3115.2,3.99877683]
[1641902895942,0.00284212,3115.7,3115.2,4.29877683]
[1641902896142,0.0022737,3115.6,3115.2,4.29877683]
[1641902896390,0.0022737,3115.6,3115.4,4.0577907]
[1641902896587,0.00511581,3116.1,3115.5,1.0]
[1641902896989,0.00454739,3116.0,3115.6,21.93524405]
[1641902897188,0.00454739,3116.0,3115.7,1.13819997]
[1641902897389,0.00397897,3115.9,3115.7,1.67377418]
[1641902897589,0.01218408,3117.4,3116.8,1.54081535]
[1641902897590,0.48778217,3117.2,3116.8,1.54081535]
[1641902897791,0.48778217,3117.2,3116.9,5.25]
[1641902898194,0.83749515,3117.9,3116.9,5.25]
[1641902898489,0.00682108,3117.1,3116.8,1.84081535]
[1641902898891,0.00625265,3117.0,3116.8,1.84081535]
[1641902899293,0.00568423,3116.9,3116.8,0.3]
[1641902899491,0.00568423,3116.9,3116.7,1.3]
[1641902899693,0.00568423,3116.9,3116.7,0.3]
[1641902899892,0.00511581,3116.8,3116.6,1.9895]
[1641902900345,0.01231977,3117.8,3116.7,1.49186225]
[1641902900540,1.41983581,3118.0,3116.7,1.49186225]
[1641902900843,0.00568424,3117.7,3116.7,1.49186225]
[1641902901142,0.00511581,3117.6,3116.7,1.49186225]
[1641902901443,0.00454739,3117.5,3116.7,1.49186225]
[1641902901840,0.00397897,3117.4,3116.7,1.49186225]
[1641902902241,0.00341054,3117.3,3116.7,1.49186225]
[1641902902642,0.00284212,3117.2,3116.7,1.49186225]
[1641902903042,0.0022737,3117.1,3116.8,0.01121865]
[1641902903242,0.0022737,3117.1,3116.7,1.79186225]
[1641902903447,0.00170527,3117.0,3116.8,0.464]
[1641902903643,5.27e-06,3117.0,3116.9,23.12456317]
[1641902903899,0.9344497,3118.0,3117.0,0.04563799]
[1641902904098,0.9344497,3118.0,3117.1,19.254]
[1641902904298,0.00511581,3117.9,3117.2,5.24672163]
[1641902904499,0.00511581,3117.9,3117.6,1.31429033]
[1641902904699,0.00454739,3117.8,3117.7,7.93660875]
[1641902904898,0.00454739,3117.8,3117.7,8.23660875]
[1641902905103,0.00454739,3117.8,3117.7,5.5]
[1641902905303,0.00454739,3117.8,3117.7,0.3]
[1641902905501,0.00454739,3117.8,3117.4,0.464]
[1641902905701,0.00454739,3117.8,3117.5,0.3]
[1641902905900,0.01248774,3118.7,3117.4,9.92589422]
[1641902905901,0.01248774,3118.7,3117.4,10.22589422]
[1641902906106,0.01248774,3118.7,3117.6,0.00113685]
[1641902906401,0.00454739,3118.6,3117.6,0.00113685]
[1641902906803,0.01248774,3118.7,3117.6,0.00113685]
[1641902906804,0.00397897,3118.5,3117.6,0.00113685]
[1641902907305,0.00341054,3118.4,3117.5,0.00170527]
[1641902907763,0.00284212,3118.3,3118.2,3.21913715]
[1641902908855,0.00284212,3118.3,3117.3,9.03393941]
[1641902908856,0.00284212,3118.3,3117.5,1.0]
[1641902909055,0.00284212,3118.3,3117.6,9.96749763]
[1641902909256,0.0022737,3118.2,3117.6,11.05193448]
[1641902909456,0.0022737,3118.2,3117.7,1.0]
[1641902909657,0.00170527,3118.1,3117.8,3.71103132]
[1641902909858,0.00170527,3118.1,3117.8,3.64268097]
[1641902910056,0.00113685,3118.0,3117.9,1.0]
[1641902910357,0.00113685,3118.0,3117.9,7.83331957]
[1641902910559,0.13819997,3118.9,3118.0,6.1]
[1641902910756,1.0,3119.0,3118.3,1.49358079]
[1641902910961,0.00454739,3118.8,3118.3,2.01028079]
[1641902911164,0.00454739,3118.8,3118.4,0.3]
[1641902911394,0.00397896,3118.7,3118.4,0.3]
[1641902911595,0.08814922,3120.1,3118.5,0.47680304]
[1641902911797,0.00799922,3120.1,3119.7,1.09403801]
[1641902911996,0.00799922,3120.1,3119.7,1.1624]
[1641902912793,0.00799922,3120.1,3119.7,1.4624]
[1641902913193,0.00799922,3120.1,3119.8,0.0074643]
[1641902913396,0.00799922,3120.1,3119.6,0.3067]
[1641902913996,0.00799922,3120.1,3119.7,0.3]
[1641902914394,9.5055,3121.5,3120.8,1.15670006]
[1641902914595,6.55,3120.8,3119.8,1.21032307]
[1641902914795,0.00738951,3120.0,3119.4,4.11068755]
[1641902914997,0.00738951,3120.0,3119.2,5.22457507]
[1641902915245,0.02901722,3121.0,3119.8,2.72548161]
[1641902915645,0.00454739,3120.7,3119.8,3.02548161]
[1641902915845,0.00454739,3120.7,3119.9,1.26347773]
[1641902916048,0.00397897,3120.6,3119.9,1.26347773]
[1641902916352,0.00341054,3120.5,3120.0,2.72548161]
[1641902916648,0.00284212,3120.4,3120.0,2.72548161]
[1641902917047,0.02901722,3121.0,3119.9,2.72548161]
[1641902917048,0.0022737,3120.3,3119.9,2.72548161]
[1641902917448,0.00170527,3120.2,3119.9,1.47950527]
[1641902917648,0.00170527,3120.2,3119.5,6.71231992]
[1641902917848,0.00113685,3120.1,3119.5,3.02548161]
[1641902918047,0.00113685,3120.1,3119.6,0.00170527]
[1641902918247,0.00568424,3120.9,3120.0,2.72548161]
[1641902918448,0.00568424,3120.9,3120.1,3.99292552]
[1641902918653,0.017,3121.0,3120.2,0.01763773]
[1641902918654,0.00511582,3120.8,3120.2,0.01763773]
[1641902918915,0.017,3121.0,3120.9,3.6]
[1641902919310,0.01813684,3121.0,3120.9,6.05]
[1641902919511,0.01813684,3121.0,3120.9,3.6]